bitfinex/quotes_SOLUSD_20260310
["timestamp","ask_amount","ask_price","bid_price","bid_amount"]
[1773172008377,11.1047999,86.1,86.051,0.8035308]
[1773172008579,11.1047999,86.09,86.051,0.8035308]
[1773172009074,11.1047999,86.09,86.053,0.8035308]
[1773172009495,7.28825791,86.118,86.053,0.8035308]
[1773172009684,4.14699705,86.09,86.055,0.8035308]
[1773172009885,4.14699705,86.09,86.057,0.8035308]
[1773172010087,15.7627732,86.09,86.059,0.8035308]
[1773172010513,4.14699705,86.11,86.061,0.8035308]
[1773172010804,4.14699705,86.11,86.071,0.8035308]
[1773172011476,40.64474172,86.112,86.071,0.8035308]
[1773172011804,11.61278335,86.112,86.071,0.8035308]
[1773172012179,3.69383402,86.139,86.085,0.8035308]
[1773172012379,11.10237647,86.13,86.085,0.8035308]
[1773172014295,40.63671932,86.129,86.087,0.8035308]
[1773172014694,11.10237647,86.12,86.087,0.8035308]
[1773172016201,11.10237647,86.11,86.087,0.8035308]
[1773172016585,40.641438,86.119,86.087,0.8035308]
[1773172018490,11.10237647,86.11,86.08,0.8035308]
[1773172019107,11.10237647,86.1,86.072,0.8035308]
[1773172019593,11.10237647,86.09,86.061,0.8035308]
[1773172019797,11.61588588,86.089,86.061,0.8035308]
[1773172020100,11.61588588,86.089,86.058,11.61995574]
[1773172020278,40.65560059,86.089,86.054,12.42411633]
[1773172020693,40.65560059,86.089,86.055,0.8035308]
[1773172020893,11.61588588,86.089,86.055,0.8035308]
[1773172021278,11.61539357,86.093,86.061,0.8035308]
[1773172021490,40.6466298,86.108,86.061,0.8035308]
[1773172021690,11.10237647,86.1,86.061,0.8035308]
[1773172021886,40.65087863,86.099,86.061,0.8035308]
[1773172022082,11.10237647,86.09,86.063,0.8035308]
[1773172022909,11.10237647,86.07,86.04,0.2]
[1773172023117,181.47713675,86.099,86.03,1.0035308]
[1773172023118,11.10237647,86.05,86.03,1.0035308]
[1773172023285,11.10237647,86.06,86.031,12.42724783]
[1773172023481,11.10237647,86.06,86.032,0.8035308]
[1773172023894,3.69383402,86.091,86.034,0.8035308]
[1773172024106,11.10237647,86.08,86.041,0.8035308]
[1773172024697,11.10237647,86.07,86.041,0.8035308]
[1773172025010,11.10237647,86.08,86.041,0.8035308]
[1773172025395,1.45196886,86.09,86.041,0.8035308]
[1773172025599,11.11087984,86.08,86.041,0.8035308]
[1773172026510,11.61723533,86.079,86.043,0.8035308]
[1773172027507,11.61723533,86.079,86.044,11.62196085]
[1773172027810,11.61723533,86.079,86.045,0.8035308]
[1773172028011,18.90227299,86.097,86.061,0.8035308]
[1773172028509,7.28733222,86.097,86.081,0.8035308]
[1773172028700,6.9659199,86.097,86.082,0.7253732]
[1773172029596,6.9659199,86.097,86.083,11.61669551]
[1773172029907,6.9659199,86.097,86.084,0.7253732]
[1773172030512,5.76071309,86.097,86.084,0.7253732]
[1773172030716,5.44053579,86.097,86.085,0.7253732]
[1773172034306,5.44053579,86.097,86.087,0.7253732]
[1773172034897,0.63186009,86.096,86.07,11.11087984]
[1773172035118,0.63186009,86.096,86.071,0.7253732]
[1773172035600,5.44053579,86.097,86.071,0.7253732]
[1773172036801,5.44053579,86.097,86.073,0.7253732]
[1773172037002,11.61494146,86.096,86.073,0.7253732]
[1773172037206,0.63041934,86.095,86.067,0.7253732]
[1773172037419,1.45147992,86.119,86.072,0.7253732]
[1773172037721,0.63041934,86.117,86.081,0.7253732]
[1773172039207,0.62901149,86.109,86.07,0.72734046]
[1773172040099,0.62763581,86.099,86.07,0.72734046]
[1773172042716,0.62629154,86.097,86.07,0.72734046]
[1773172042913,0.62629154,86.097,86.072,0.72734046]
[1773172043213,11.61467165,86.098,86.072,0.72734046]
[1773172043810,11.6121091,86.117,86.072,0.72734046]
[1773172044015,40.64238186,86.117,86.081,0.72734046]
[1773172044815,40.64238186,86.117,86.083,0.72734046]
[1773172047803,40.64238186,86.117,86.082,11.61683046]
[1773172047804,41.26544553,86.117,86.085,0.72734046]
[1773172047997,40.64238186,86.117,86.085,0.72734046]
[1773172048198,0.62244016,86.116,86.085,0.72734046]
[1773172049902,11.61237879,86.115,86.086,11.61629068]
[1773172050104,0.62244016,86.116,86.087,0.72734046]
[1773172050105,12.23474533,86.116,86.087,0.72734046]
[1773172050313,11.61103047,86.125,86.091,0.72734046]
[1773172050499,0.62121457,86.124,86.091,0.72734046]
[1773172050698,0.62121457,86.119,86.091,0.72734046]
[1773172051823,11.61197426,86.118,86.093,0.72734046]
[1773172054106,11.61141486,86.123,86.095,0.72734046]
[1773172054306,1.45112607,86.14,86.111,0.72734046]
[1773172054307,0.61884671,86.14,86.111,0.72734046]
[1773172054605,0.61884671,86.158,86.121,0.72734046]
[1773172055011,11.60747057,86.152,86.121,0.72734046]
[1773172055629,11.72258436,86.14,86.111,0.72734046]
[1773172056206,11.60914336,86.139,86.112,12.34012381]
[1773172056420,11.60914336,86.139,86.113,0.72734046]
[1773172057922,0.61658577,86.129,86.103,11.61399718]
[1773172058328,0.61658577,86.129,86.104,0.72734046]
[1773172058713,11.61019021,86.132,86.104,0.72734046]
[1773172059825,0.61603668,86.131,86.104,0.72734046]
[1773172060031,0.61549389,86.119,86.085,0.72734046]
[1773172060210,0.61549389,86.117,86.087,0.72734046]
[1773172061330,11.10431272,86.11,86.08,0.72734046]
[1773172061648,0.61495734,86.109,86.08,0.72734046]
[1773172061941,40.64190992,86.118,86.039,3.69383402]
[1773172061942,0.61442694,86.099,86.066,0.72734046]
[1773172062117,11.10431272,86.09,86.066,0.72734046]
[1773172062315,0.61442694,86.079,86.041,0.72734046]
[1773172062721,11.10431272,86.07,86.041,0.72734046]
[1773172063127,0.61442694,86.071,86.041,0.72734046]
[1773172063436,11.10431272,86.07,86.041,0.72734046]
[1773172063633,0.61390264,86.069,86.032,0.72734046]
[1773172063819,11.71821536,86.06,86.032,0.72734046]
[1773172064429,11.61993516,86.059,86.032,0.72734046]
[1773172064843,11.61993516,86.059,86.032,12.35087166]
[1773172065146,11.61931844,86.064,86.033,0.72734046]
[1773172065735,4.14932796,86.06,86.033,0.72734046]
[1773172065936,11.61931844,86.064,86.033,0.72734046]
[1773172066119,4.14932796,86.06,86.033,0.72734046]
[1773172066321,0.6123656,86.063,86.033,0.72734046]
[1773172066544,11.6195301,86.062,86.035,0.72734046]
[1773172067216,11.61892162,86.067,86.035,0.72734046]
[1773172069029,11.61892162,86.067,86.036,11.62304151]
[1773172069225,12.22884095,86.067,86.037,0.75176714]
[1773172069543,0.60991933,86.066,86.037,0.75176714]
[1773172070523,0.60944681,86.069,86.039,0.77893167]
[1773172070838,11.61791017,86.074,86.039,0.77893167]
[1773172071522,11.61588588,86.089,86.041,0.77893167]
[1773172071725,0.60897971,86.079,86.041,0.77893167]
[1773172072748,11.61737029,86.078,86.043,0.77893167]
[1773172073048,0.60806155,86.077,86.043,0.77893167]
[1773172074843,0.60761036,86.075,86.044,11.62196085]
[1773172075046,0.60761036,86.069,86.031,0.77893167]
[1773172075432,0.60761036,86.069,86.034,0.77893167]
[1773172076444,41.26846425,86.076,86.034,0.77893167]
[1773172076647,15.76644089,86.08,86.041,0.77893167]
[1773172076965,0.60672347,86.088,86.051,0.77893167]
[1773172077133,0.60628766,86.086,86.053,0.77893167]
[1773172077330,4.14932796,86.08,86.053,0.77893167]
[1773172077638,11.61566629,86.091,86.06,4.14932796]
[1773172077838,11.61566629,86.091,86.061,0.77893167]
[1773172079134,11.61453675,86.099,86.063,0.77893167]
[1773172079352,0.60543098,86.098,86.063,0.77893167]
[1773172080354,11.61404168,86.103,86.071,0.77893167]
[1773172081452,4.14932796,86.1,86.072,0.77893167]
[1773172081663,4.14932796,86.08,86.051,0.77893167]
[1773172082189,0.60418252,86.079,86.051,0.77893167]
[1773172082337,4.14932796,86.07,86.045,11.62179278]
[1773172083359,0.60377588,86.069,86.04,11.62237983]
[1773172083547,0.60377588,86.057,86.032,11.62349297]
[1773172083852,0.60377588,86.057,86.032,12.40242464]
[1773172084156,0.60377588,86.057,86.033,0.77893167]
[1773172084669,0.60377588,86.057,86.03,0.2]
[1773172084836,0.60377588,86.057,86.031,11.62371703]
[1773172085768,11.62034024,86.056,86.031,11.62371703]
[1773172086965,12.22319411,86.054,86.031,11.62371703]
[1773172088160,4.14994963,86.06,86.03,0.2]
[1773172088161,0.60181172,86.049,86.03,0.2]
[1773172088671,0.60181172,86.058,86.032,0.77893167]
[1773172089251,11.61948309,86.063,86.032,0.77893167]
[1773172090267,11.61948309,86.063,86.031,11.62371703]
[1773172090268,0.60105727,86.085,86.042,0.77893167]
[1773172090468,11.61588588,86.089,86.051,0.77893167]
[1773172091163,11.61588588,86.089,86.061,0.77893167]
[1773172092369,11.61588588,86.089,86.062,12.39846177]
[1773172093962,0.59959968,86.088,86.062,0.77893167]
[1773172094466,11.61588588,86.089,86.062,0.77893167]
[1773172094679,12.21548556,86.089,86.062,0.77893167]
[1773172094972,12.21548556,86.089,86.064,0.77893167]
[1773172094973,0.59959968,86.089,86.064,0.77893167]
[1773172095275,11.61453675,86.099,86.064,0.77893167]
[1773172095660,12.21378244,86.099,86.064,0.77893167]
[1773172096689,11.61278335,86.112,86.081,0.77893167]
[1773172096867,0.59889576,86.111,86.081,0.77893167]
[1773172097202,4.74849948,86.11,86.081,0.77893167]
[1773172098969,0.59786991,86.108,86.081,0.77893167]
[1773172099166,0.59786991,86.099,86.072,0.77893167]
[1773172100658,0.5972055,86.089,86.057,0.75239105]
[1773172100872,0.5972055,86.089,86.051,0.75239105]
[1773172101075,145.16484919,86.109,86.031,0.75239105]
[1773172101076,4.14994963,86.06,86.031,0.75239105]
[1773172101259,4.74682863,86.06,86.031,11.62371703]
[1773172101464,4.74682863,86.06,86.032,0.75239105]
[1773172101766,11.71194995,86.06,86.032,0.75239105]
[1773172102488,22.73498775,86.06,86.034,0.75239105]
[1773172102684,0.59655626,86.075,86.034,0.75239105]
[1773172102884,11.71162721,86.07,86.034,0.75239105]
[1773172103380,0.59623722,86.069,86.034,0.75239105]
[1773172104079,11.61872008,86.068,86.036,0.75239105]
[1773172104670,0.59592185,86.067,86.036,0.75239105]
[1773172105885,11.11507095,86.06,86.036,0.75239105]
[1773172106484,0.59530193,86.058,86.03,0.2]
[1773172106676,0.59530193,86.058,86.02,11.31507095]
[1773172106677,0.59530193,86.049,86.02,0.2]
[1773172106880,0.59530193,86.049,86.02,11.82512795]
[1773172107587,40.66977306,86.059,86.021,0.75239105]
[1773172108177,11.61993516,86.059,86.021,0.75239105]
[1773172109284,11.61993516,86.059,86.023,0.75239105]
[1773172111387,11.61993516,86.059,86.025,0.75239105]
[1773172111586,0.59381337,86.058,86.025,0.75239105]
[1773172112884,11.62020521,86.057,86.027,0.75239105]
[1773172113083,0.59324161,86.056,86.027,0.75239105]
[1773172114799,11.62020521,86.057,86.028,11.62412237]
[1773172114973,11.61899007,86.066,86.031,0.75239105]
[1773172116883,0.59240835,86.059,86.022,0.75239105]
[1773172117190,0.59213696,86.049,86.023,11.62479801]
[1773172117374,0.59213696,86.049,86.023,12.37718906]
[1773172117575,0.59213696,86.049,86.02,0.2]
[1773172117787,0.59213696,86.049,86.021,11.62506829]
[1773172117995,0.59213696,86.059,86.022,0.75239105]
[1773172118878,40.67024564,86.058,86.023,11.62479801]
[1773172119194,11.11507095,86.05,86.024,0.75239105]
[1773172119394,0.59160349,86.057,86.024,0.75239105]
[1773172120399,0.59134134,86.049,86.024,0.75239105]
[1773172121094,11.6214206,86.048,86.024,0.75239105]
[1773172121292,12.2125028,86.048,86.024,0.75239105]
[1773172122896,0.59082604,86.047,86.021,11.62498553]
[1773172123501,0.59057282,86.045,86.02,0.2]
[1773172123699,0.59057282,86.039,86.02,0.2]
[1773172123877,1.4527451,86.044,86.0,0.2]
[1773172123878,4.15055388,86.03,86.0,0.2]
[1773172124199,0.3903225,86.019,85.991,0.75239105]
[1773172124394,0.3903225,86.019,85.992,12.38137979]
[1773172126006,11.62547373,86.018,85.993,0.75239105]
[1773172129605,4.15055388,86.02,85.98,33.42688587]
[1773172129606,0.38885287,86.015,85.988,11.62946823]
[1773172129807,0.38885287,86.009,85.981,0.77528996]
[1773172130303,0.38872484,85.999,85.98,0.2]
[1773172130605,40.69010415,86.016,85.982,0.77528996]
[1773172130787,11.62574404,86.016,85.982,0.77528996]
[1773172131190,12.01434231,86.016,85.982,0.77528996]
[1773172131384,0.38859827,86.015,85.982,0.77528996]
[1773172131581,4.15055388,86.01,85.982,0.77528996]
[1773172131887,15.77716276,86.01,85.983,11.63020597]
[1773172132088,15.77716276,86.01,85.984,0.77528996]
[1773172132808,29.06087554,86.027,85.991,0.77528996]
[1773172132993,0.69918885,86.019,85.991,0.77528996]
[1773172134094,11.62547373,86.018,85.993,0.77528996]
[1773172135605,0.69894575,86.017,85.993,0.77528996]
[1773172136201,11.62547373,86.018,85.995,0.77528996]
[1773172137696,0.6987082,86.028,85.995,0.77528996]
[1773172138499,0.69859459,86.026,85.995,0.77528996]
[1773172139312,0.69859459,86.026,85.98,0.2]
[1773172139313,11.6242575,86.027,86.001,0.77528996]
[1773172139819,11.62304151,86.036,86.011,0.77528996]
[1773172140314,11.62182578,86.045,86.011,0.77528996]
[1773172140501,1.45239063,86.065,85.98,0.2]
[1773172140502,29.05132233,86.055,86.02,4.15055388]
[1773172140706,11.61993516,86.059,86.021,0.77528996]
[1773172141600,0.69826152,86.058,86.021,0.77528996]
[1773172141810,0.69826152,86.049,86.013,0.77528996]
[1773172142018,11.61993516,86.059,86.031,0.77528996]
[1773172142517,0.69815304,86.059,86.032,0.77528996]
[1773172142696,0.69815304,86.057,86.02,4.15055388]
[1773172142892,4.15055388,86.06,86.022,0.77528996]
[1773172143817,4.15055388,86.05,86.022,0.77528996]
[1773172144111,0.6979398,86.049,86.014,0.77528996]
[1773172144322,29.04694238,86.068,86.021,0.77528996]
[1773172144323,0.6979398,86.056,86.021,0.77528996]
[1773172145621,29.04694238,86.068,86.031,0.77528996]
[1773172145805,11.61885507,86.067,86.031,0.77528996]
[1773172146120,11.61885507,86.067,86.041,0.77528996]
[1773172147123,40.66174078,86.076,86.042,0.77528996]
[1773172147497,0.69762903,86.075,86.042,0.77528996]
[1773172147802,4.14873593,86.07,86.042,0.77528996]
[1773172148004,0.69762903,86.075,86.042,0.77528996]
[1773172148914,0.69762903,86.075,86.043,0.77528996]
[1773172150421,40.66268559,86.074,86.043,0.77528996]
[1773172150616,0.69732886,86.069,86.043,0.77528996]
[1773172150817,40.66268559,86.074,86.043,0.77528996]
[1773172151023,11.61791017,86.074,86.051,0.77528996]
[1773172152316,11.61723533,86.079,86.051,0.77528996]
[1773172153397,40.66032365,86.079,86.051,0.77528996]
[1773172153813,0.6970389,86.078,86.051,0.77528996]
[1773172154620,4.14873593,86.07,86.041,0.77528996]
[1773172154800,0.69694446,86.069,86.041,0.77528996]
[1773172155000,4.14873593,86.07,86.041,0.77528996]
[1773172155216,0.69685111,86.076,86.041,0.77528996]
[1773172156413,11.61777519,86.075,86.043,0.77528996]
[1773172158207,0.69657743,86.069,86.043,0.77528996]
[1773172158721,4.14873593,86.07,86.043,0.77528996]
[1773172158722,12.31529751,86.068,86.043,0.77528996]
[1773172158921,11.61872008,86.068,86.043,0.77528996]
[1773172159527,0.69640017,86.067,86.043,0.77528996]
[1773172161234,11.61899007,86.066,86.044,11.62196085]
[1773172161713,11.61899007,86.066,86.044,12.34813361]
[1773172162337,11.61899007,86.066,86.044,0.72617276]
[1773172162722,11.61899007,86.066,86.044,12.34813361]
[1773172163115,12.31504779,86.066,86.044,0.72617276]
[1773172163517,11.61899007,86.066,86.044,0.72617276]
[1773172165020,12.31488241,86.066,86.044,0.72617276]
[1773172166132,0.69581107,86.079,86.046,0.72617276]
[1773172166325,4.14873593,86.08,86.051,0.72617276]
[1773172166526,4.844547,86.08,86.051,0.72617276]
[1773172166834,0.69581107,86.079,86.051,0.72617276]
[1773172167737,0.69573073,86.077,86.051,0.72617276]
[1773172169034,11.61602081,86.088,86.053,0.72617276]
[1773172170135,11.61602081,86.088,86.055,0.72617276]
[1773172170337,0.69549521,86.087,86.055,0.72617276]
[1773172171535,40.65701739,86.086,86.055,0.72617276]
[1773172171738,0.6954185,86.085,86.055,0.72617276]
[1773172172722,4.14873593,86.08,86.055,0.72617276]
[1773172173736,40.66032365,86.079,86.055,0.72617276]
[1773172175741,0.69512038,86.098,86.057,0.72617276]
[1773172175938,0.69512038,86.089,86.057,0.72617276]
[1773172177041,0.69497641,86.079,86.057,0.72617276]
[1773172177637,0.69497641,86.079,86.049,0.72617276]
[1773172179024,4.14873593,86.08,86.049,0.72617276]
[1773172179025,11.61737029,86.078,86.049,0.72617276]
[1773172179232,12.31220601,86.078,86.049,0.72617276]
[1773172180226,11.61737029,86.078,86.051,0.72617276]
[1773172181230,29.04289946,86.08,86.053,0.72617276]
[1773172181743,0.69469825,86.115,86.071,0.72617276]
[1773172181949,0.69469825,86.115,86.081,0.72617276]
[1773172182145,4.24873593,86.11,86.081,0.72617276]
[1773172182450,0.69463069,86.108,86.081,0.72617276]
[1773172183452,0.69456391,86.106,86.081,0.72617276]
[1773172184235,0.6944979,86.099,86.072,0.72617276]
[1773172184446,0.6944979,86.089,86.071,0.7]
[1773172184833,4.14873593,86.09,86.071,0.7]
[1773172185352,4.84316858,86.1,86.072,0.72617276]
[1773172185551,4.84316858,86.1,86.071,0.7]
[1773172185552,4.14873593,86.09,86.071,1e-08]
[1773172186246,0.71766862,86.095,86.071,1e-08]
[1773172186447,4.14873593,86.09,86.071,1e-08]
[1773172187235,0.71766862,86.095,86.071,1e-08]
[1773172187441,11.61602081,86.088,86.071,1e-08]
[1773172188148,11.61602081,86.088,86.071,0.7039724]
[1773172190053,40.65087863,86.099,86.071,11.61828358]
[1773172190252,0.76518124,86.098,86.072,0.75000738]
[1773172190750,40.65087863,86.099,86.073,0.75000738]
[1773172193141,29.03634188,86.099,86.073,0.75000738]
[1773172193436,0.76518124,86.098,86.073,0.75000738]
[1773172193843,11.6138623,86.104,86.073,0.75000738]
[1773172194054,12.37904354,86.104,86.073,0.75000738]
[1773172194861,12.37904354,86.104,86.074,0.75000738]
[1773172195342,0.76518124,86.103,86.074,0.75000738]
[1773172196261,0.76518124,86.103,86.076,0.75000738]
[1773172196458,40.64851806,86.104,86.076,0.75000738]
[1773172196655,0.1,86.16,86.081,0.75000738]
[1773172196656,0.76518124,86.119,86.081,0.75000738]
[1773172197162,11.61197426,86.118,86.083,0.75000738]
[1773172197871,0.76518124,86.117,86.083,0.75000738]
[1773172198160,11.61153353,86.122,86.091,0.75000738]
[1773172198363,12.37671477,86.122,86.091,0.75000738]
[1773172198748,0.76518124,86.119,86.091,0.75000738]
[1773172198946,0.76518124,86.117,86.091,0.75000738]
[1773172199165,0.76518124,86.117,86.081,0.75000738]
[1773172199354,0.76518124,86.109,86.081,0.75000738]
[1773172200243,0.76518124,86.112,86.081,0.75000738]
[1773172200458,0.76518124,86.109,86.081,0.75000738]
[1773172200649,0.76518124,86.099,86.071,0.75000738]
[1773172200843,11.61197426,86.118,86.071,40.66410288]
[1773172201046,4.14873593,86.12,86.092,0.75000738]
[1773172201247,0.76518124,86.109,86.07,4.14873593]
[1773172201461,0.76518124,86.109,86.056,3.69383402]
[1773172201462,0.76518124,86.124,86.09,4.14873593]
[1773172201653,0.76518124,86.109,86.071,40.66410288]
[1773172202063,0.76518124,86.119,86.08,4.14873593]
[1773172202463,4.14873593,86.12,86.08,4.14873593]
[1773172202653,0.76518124,86.119,86.08,4.14873593]
[1773172203262,0.76518124,86.109,86.078,0.75000738]
[1773172203649,0.76518124,86.117,86.081,0.75000738]
[1773172204152,0.76518124,86.109,86.081,0.75000738]
[1773172205157,0.76518124,86.117,86.081,0.75000738]
[1773172205358,0.76518124,86.115,86.083,0.75000738]
[1773172205557,0.76518124,86.109,86.083,0.75000738]
[1773172205857,0.76518124,86.099,86.067,11.61885507]
[1773172206053,0.76518124,86.099,86.071,0.75000738]
[1773172206248,0.76518124,86.115,86.081,0.75000738]
[1773172207264,0.76518124,86.113,86.071,0.75000738]
[1773172207456,0.76518124,86.099,86.067,0.75000738]
[1773172207651,0.76518124,86.099,86.071,0.75000738]
[1773172209068,0.76518124,86.099,86.061,11.61966512]
[1773172209262,0.76518124,86.099,86.062,0.75000738]
[1773172209662,0.76518124,86.097,86.064,0.75000738]
[1773172211072,0.76518124,86.089,86.058,12.37000521]
[1773172211254,0.76518124,86.089,86.059,0.75000738]
[1773172211460,0.76518124,86.079,86.045,0.75000738]
[1773172211658,0.76518124,86.077,86.046,11.62169072]
[1773172212062,11.616899,86.082,86.051,0.75000738]
[1773172212570,0.76518124,86.081,86.051,0.75000738]
[1773172213866,12.38228161,86.08,86.053,0.75000738]
[1773172214174,0.76518124,86.079,86.053,0.75000738]
[1773172215171,11.61737029,86.078,86.055,0.75000738]
[1773172215368,0.76518124,86.085,86.055,0.75000738]
[1773172218176,0.76518124,86.083,86.056,12.37034762]
[1773172218352,0.76518124,86.083,86.057,0.75000738]
[1773172218776,40.65796198,86.084,86.032,61.8]
[1773172218777,0.76518124,86.079,86.038,0.75000738]
[1773172218984,0.76518124,86.069,86.039,0.75000738]
[1773172219774,0.76518124,86.069,86.034,11.62323984]
[1773172219971,0.76518124,86.069,86.041,0.77559023]
[1773172220975,0.71871707,86.067,86.041,0.77559023]
[1773172221579,0.71871707,86.067,86.042,11.622231]
[1773172221778,0.71871707,86.067,86.043,0.77559023]
[1773172222485,0.71871707,86.059,86.026,11.62439262]
[1773172222773,0.71871707,86.049,86.021,11.62505092]
[1773172222971,11.6214206,86.048,86.021,11.62505092]
[1773172223167,11.6214206,86.048,86.022,0.77559023]
[1773172223168,0.71871707,86.047,86.022,0.77559023]
[1773172223680,11.62007018,86.058,86.022,0.77559023]
[1773172223883,11.62007018,86.058,86.031,0.77559023]
[1773172224661,0.71871707,86.057,86.031,0.77559023]
[1773172225384,11.61951663,86.063,86.041,0.77559023]
[1773172225682,12.3382337,86.063,86.041,0.77559023]
[1773172225879,11.61951663,86.063,86.041,0.77559023]
[1773172226077,0.71871707,86.062,86.033,0.77559023]
[1773172227858,0.71871707,86.06,86.033,0.77559023]
[1773172228180,0.71871707,86.049,86.02,0.77559023]
[1773172228376,0.71871707,86.049,86.021,0.77559023]
[1773172228990,0.71871707,86.059,86.021,0.77559023]
[1773172229987,0.71871707,86.057,86.023,0.77559023]
[1773172231387,0.71871707,86.057,86.022,11.62493315]
[1773172231388,11.61963194,86.062,86.031,0.77559023]
[1773172231584,11.61963194,86.062,86.041,0.77559023]
[1773172231769,0.71871707,86.065,86.041,0.77559023]
[1773172231968,1.45208693,86.083,86.0,4.14626668]
[1773172231969,0.71871707,86.063,86.033,0.77559023]
[1773172235288,0.71871707,86.063,86.035,0.77559023]
[1773172235796,0.71871707,86.063,86.041,0.77559023]
[1773172236475,0.71871707,86.059,86.021,0.77559023]
[1773172236788,0.71871707,86.059,86.022,11.62491601]
[1773172236969,0.71871707,86.059,86.023,0.77559023]
[1773172237375,11.62007018,86.058,86.023,0.77559023]
[1773172237569,0.71871707,86.057,86.025,0.77559023]
[1773172238985,0.71871707,86.039,86.005,0.77559023]
[1773172239182,0.71871707,86.039,86.006,11.62709578]
[1773172239391,0.71871707,86.039,86.011,0.77559023]
[1773172239572,11.62277133,86.038,86.013,0.77559023]
[1773172240292,12.3414884,86.038,86.013,0.77559023]
[1773172242970,12.3414884,86.038,86.01,4.14626668]
[1773172242971,11.6214206,86.048,86.021,0.77559023]
[1773172243382,12.33916565,86.056,86.031,0.77559023]
[1773172243688,0.71871707,86.063,86.031,0.77559023]
[1773172243890,0.71871707,86.064,86.041,0.77559023]
[1773172244581,11.61913919,86.065,86.041,0.77559023]
[1773172245084,11.61913919,86.065,86.042,12.39782123]
[1773172245299,0.71871707,86.064,86.03,4.14626668]
[1773172245477,0.71871707,86.059,86.023,11.62467774]
[1773172246876,0.77204485,86.057,86.023,11.62467774]
[1773172247473,0.77204485,86.057,86.012,29.22997955]
[1773172247679,0.77204485,86.049,86.013,11.62614953]
[1773172248081,0.77204485,86.039,86.013,11.62614953]
[1773172248285,0.77204485,86.057,86.014,0.16444191]
[1773172249192,0.77204485,86.055,86.02,4.14626668]
[1773172250094,11.61984921,86.06,86.031,0.16490443]
[1773172250398,0.73992053,86.059,86.031,0.16490443]
[1773172251202,0.73992053,86.057,86.032,11.62358192]
[1773172251502,0.73992053,86.057,86.033,0.16509166]
[1773172254481,0.73992053,86.055,86.027,0.16564054]
[1773172254693,0.73992053,86.055,86.03,4.14626668]
[1773172255801,11.62061031,86.054,86.031,11.62371703]
[1773172256105,0.73992053,86.053,86.031,11.62371703]
[1773172257303,12.36080092,86.052,86.031,11.62371703]
[1773172258096,0.73992053,86.051,86.031,11.62371703]
[1773172259708,0.73992053,86.057,86.032,0.16651412]
[1773172260804,0.73992053,86.055,86.033,11.62344681]
[1773172261103,0.73992053,86.055,86.029,11.79082027]
[1773172261286,0.73992053,86.055,86.03,4.14626668]
[1773172261698,0.73992053,86.055,86.029,0.16684966]
[1773172262384,0.73992053,86.055,86.022,11.62493315]
[1773172262589,0.73992053,86.049,86.018,61.8]
[1773172262801,0.73992053,86.047,86.019,0.16701455]
[1773172263005,0.73992053,86.047,86.021,0.16701455]
[1773172267497,11.62169072,86.046,86.01,4.14626668]
[1773172267695,0.73992053,86.045,86.012,0.167811]
[1773172269836,0.73992053,86.043,86.02,4.14626668]
[1773172270509,0.73992053,86.043,86.021,0.16826725]
[1773172270714,0.73992053,86.053,86.021,0.16826725]
[1773172271010,0.73992053,86.053,86.03,4.14626668]
[1773172271212,11.62061031,86.054,86.031,0.16841586]
[1773172271595,12.35999071,86.058,86.033,0.16841586]
[1773172272095,11.61908924,86.066,86.041,0.16856275]
[1773172272514,12.35900977,86.066,86.041,0.16856275]
[1773172272809,11.61912507,86.065,86.041,0.16856275]
[1773172273207,12.3590456,86.065,86.041,0.16856275]
[1773172273914,0.73992053,86.064,86.042,11.622231]
[1773172275612,0.00899262,86.071,86.051,0.1689934]
[1773172276920,0.73992053,86.069,86.04,4.14886527]
[1773172277352,0.73992053,86.069,86.03,4.14886527]
[1773172277509,0.73992053,86.069,86.031,0.16927231]
[1773172277723,0.73992053,86.067,86.032,11.62358192]
[1773172277901,0.73992053,86.067,86.04,4.14886527]
[1773172278231,0.73992053,86.067,86.032,11.62358192]
[1773172280906,0.71592536,86.059,86.02,4.14886527]
[1773172281109,0.71592536,86.059,86.023,11.62468122]
[1773172281717,0.71592536,86.049,86.023,11.62468122]
[1773172282423,0.71592536,86.049,86.013,11.62614953]
[1773172283704,0.71592536,86.047,86.013,11.62614953]
[1773172285725,0.71592536,86.045,86.009,11.6266636]
[1773172286424,0.71592536,86.039,86.001,11.62777177]
[1773172287120,0.71592536,86.045,86.02,4.14886527]
[1773172287723,0.71592536,86.045,86.015,0.1706963]
[1773172288232,0.71592536,86.043,86.016,11.62574404]
[1773172288435,0.71592536,86.043,86.02,4.14886527]
[1773172289117,0.71592536,86.043,86.011,11.62641987]
[1773172289631,0.71592536,86.043,86.012,0.17093632]
[1773172291234,11.622231,86.042,86.011,11.62641987]
[1773172291430,0.71592536,86.041,86.011,11.62641987]
[1773172292533,0.71592536,86.029,85.989,0.7669433]
[1773172292737,0.71592536,86.029,85.991,0.7669433]
[1773172293216,0.71592536,86.029,86.0,4.14886527]
[1773172293620,0.71592536,86.027,86.001,11.62777177]
[1773172293828,0.71592536,86.027,86.002,0.7669433]
[1773172295937,11.62412237,86.028,85.97,58.35914821]
[1773172295938,0.71592536,86.025,85.99,4.14886527]
[1773172296234,0.71592536,86.025,85.99,15.77812448]
[1773172296427,0.71592536,86.025,85.99,16.54506778]